fUSD/lending_fUSD_20250514
["ID","MTS","AMOUNT","RATE_DAILY","PERIOD"]
[361063903,1747227055727,-1542.93,0.00011528,2]
[361063904,1747227055736,-5413.71,0.00011528,2]
[361063905,1747227055746,-542.18,0.00011528,2]
[361063906,1747227055755,-978.26,0.00011528,2]
[361063907,1747227055764,-400.0,0.00011528,2]
[361063908,1747227055774,-400.0,0.00011528,2]
[361063909,1747227055783,-1210.96,0.00011528,2]
[361063910,1747227055792,-2688.98,0.00011528,2]
[361063911,1747227055801,-1789.87,0.00011528,2]
[361063912,1747227055811,-400.0,0.00011528,2]
[361063913,1747227055821,-622.33,0.00011528,2]
[361063914,1747227055830,-1809.73,0.00011528,2]
[361063915,1747227055840,-400.0,0.00011528,2]
[361063916,1747227055849,-760.74,0.00011528,2]
[361063917,1747227055859,-400.0,0.00011528,2]
[361063918,1747227055868,-4164.49,0.00011528,2]
[361063919,1747227055878,-150.63066468,0.00011528,2]
[361063920,1747227055887,-1400.52,0.00011528,2]
[361063921,1747227055897,-676.31,0.00011528,2]
[361063922,1747227055907,-400.0,0.00011528,2]
[361063923,1747227055916,-1347.09,0.00011528,2]
[361063924,1747227055928,-400.0,0.00011528,2]
[361063925,1747227055937,-400.0,0.00011528,2]
[361063926,1747227055946,-400.0,0.00011528,2]
[361063927,1747227055956,-424.24,0.00011528,2]
[361063928,1747227055965,-1577.52,0.00011528,2]
[361063929,1747227055974,-503.85,0.00011528,2]
[361063930,1747227055983,-400.0,0.00011528,2]
[361063931,1747227056452,-2249.52,0.00011528,2]
[361063932,1747227056475,-772.02,0.00011528,2]
[361063933,1747227056487,-400.0,0.00011528,2]
[361063934,1747227056497,-400.0,0.00011528,2]
[361063935,1747227056506,-7214.96,0.00011528,2]
[361063936,1747227056515,-405.7,0.00011528,2]
[361063937,1747227056524,-1927.93,0.00011528,2]
[361063938,1747227056534,-400.0,0.00011528,2]
[361063939,1747227056543,-1337.35,0.00011528,2]
[361063940,1747227056552,-400.0,0.00011528,2]
[361063941,1747227056560,-2177.99,0.00011528,2]
[361063942,1747227056567,-726.52,0.00011528,2]
[361063943,1747227056575,-5621.61,0.00011528,2]
[361063944,1747227056584,-400.0,0.00011528,2]
[361063945,1747227056592,-367.96,0.00011528,2]
[361063946,1747227056600,-626.5,0.00011528,2]
[361063947,1747227056609,-949.74,0.00011528,2]
[361063948,1747227056618,-599.89,0.00011528,2]
[361063949,1747227056627,-655.23,0.00011528,2]
[361063950,1747227056637,-418.19,0.00011528,2]
[361063951,1747227056646,-476.0,0.00011528,2]
[361063952,1747227056655,-400.0,0.00011528,2]
[361063953,1747227056665,-400.0,0.00011528,2]
[361063954,1747227056677,-4713.15,0.00011528,2]
[361063955,1747227056686,-469.11849474,0.00011528,2]
[361063956,1747227056695,-443.15351169,0.00011528,2]
[361063957,1747227056704,-1358.33,0.00011528,2]
[361063958,1747227056714,-656.29,0.00011528,2]
[361063959,1747227056723,-400.0,0.00011528,2]
[361063960,1747227056732,-151.0,0.00011528,2]
[361063961,1747227056742,-480.08,0.00011528,2]
[361063962,1747227056752,-702.69,0.00011528,2]
[361063963,1747227056761,-780.36,0.00011528,2]
[361063964,1747227056771,-1216.684352,0.00011528,2]
[361063965,1747227056780,-1121.58,0.00011528,2]
[361063966,1747227056790,-400.0,0.00011528,2]
[361063967,1747227056800,-7378.97,0.00011528,2]
[361063968,1747227056809,-400.0,0.00011528,2]
[361063969,1747227056819,-887.37,0.00011528,2]
[361063970,1747227056828,-400.0,0.00011528,2]
[361063971,1747227056838,-1216.684352,0.00011528,2]
[361063972,1747227056847,-21181.0,0.00011528,2]
[361063973,1747227056857,-202.71742683,0.00011528,2]
[361063974,1747227056873,-778.42257317,0.00011528,2]
[361063975,1747227056882,-265.45059046,0.00011528,2]
[361063976,1747227056968,-425.36940954,0.00011528,2]
[361063977,1747227056978,-1535.8,0.00011528,2]
[361063978,1747227056987,-1918.81,0.00011528,2]
[361063979,1747227056997,-674.73,0.00011528,2]
[361063980,1747227057006,-1915.27,0.00011528,2]
[361063981,1747227057015,-400.0,0.00011528,2]
[361063982,1747227057029,-400.0,0.00011528,2]
[361063983,1747227057038,-3071.79,0.00011528,2]
[361063984,1747227057049,-731.919218,0.00011528,2]
[361063985,1747227057059,-400.0,0.00011528,2]
[361063986,1747227057071,-504.27,0.00011528,2]
[361063987,1747227057080,-1300.24,0.00011528,2]
[361063988,1747227057090,-2123.4,0.00011528,2]
[361063989,1747227057099,-400.0,0.00011528,2]
[361063990,1747227057110,-1232.6,0.00011528,2]
[361063991,1747227057121,-1665.94,0.00011528,2]
[361063992,1747227057130,-306.1001652,0.00011528,2]
[361063993,1747227057139,-473.45,0.00011528,2]
[361063994,1747227057149,-731.919218,0.00011528,2]
[361063995,1747227057158,-400.0,0.00011528,2]
[361063996,1747227057169,-400.0,0.00011528,2]
[361063997,1747227057179,-400.0,0.00011528,2]
[361063998,1747227057189,-400.0,0.00011528,2]
[361063999,1747227057199,-400.0,0.00011528,2]
[361064000,1747227057209,-235.28861,0.00011528,2]
[361064001,1747227057219,-400.0,0.00011528,2]
[361064002,1747227057229,-1000.0,0.00011528,2]
[361064003,1747227057239,-551.24,0.00011528,2]
[361064004,1747227057249,-1849.9,0.00011528,2]
[361064005,1747227057259,-235.28861,0.00011528,2]
[361064006,1747227057269,-445.32,0.00011528,2]
[361064007,1747227057279,-849.78,0.00011528,2]
[361064008,1747227057288,-345.263491,0.00011528,2]
[361064009,1747227057298,-400.0,0.00011528,2]
[361064010,1747227057307,-345.263491,0.00011528,2]
[361064011,1747227057316,-400.0,0.00011528,2]
[361064012,1747227057326,-482.14,0.00011528,2]
[361064013,1747227057335,-1088.99,0.00011528,2]
[361064014,1747227057344,-441.29,0.00011528,2]
[361064015,1747227057354,-408.57229255,0.00011529,2]
[361064016,1747227057363,-151.0,0.00011529,2]
[361064017,1747227057373,-400.0,0.00011529,2]
[361064018,1747227057382,-620.04,0.00011529,2]
[361064019,1747227057393,-400.0,0.00011529,2]
[361064020,1747227057402,-322.14619869,0.00011529,2]
[361064021,1747227057412,-668.59,0.00011529,2]
[361064022,1747227057423,-400.0,0.00011529,2]
[361064023,1747227057433,-400.0,0.00011529,2]
[361064024,1747227057443,-400.0,0.00011529,2]
[361064025,1747227057452,-533.04213148,0.00011529,2]
[361064026,1747227057461,-445.85266274,0.00011529,2]
[361064027,1747227057470,-400.0,0.00011529,2]
[361064028,1747227057481,-400.0,0.00011529,2]
[361064029,1747227057490,-151.0,0.00011529,2]
[361064030,1747227057499,-151.0,0.00011529,2]
[361064031,1747227057508,-400.0,0.00011529,2]
[361064032,1747227057518,-400.0,0.00011529,2]
[361064033,1747227057527,-400.0,0.00011529,2]
[361064034,1747227057536,-151.0,0.00011529,2]
[361064035,1747227057546,-400.0,0.00011529,2]
[361064036,1747227057555,-400.0,0.00011529,2]
[361064037,1747227057565,-813.35,0.00011529,2]
[361064038,1747227057574,-151.0,0.00011529,2]
[361064039,1747227057583,-400.0,0.00011529,2]
[361064040,1747227057593,-188.711592,0.00011529,2]
[361064041,1747227057602,-188.711592,0.00011529,2]
[361064042,1747227057611,-426.98,0.00011529,2]
[361064043,1747227057621,-400.0,0.00011529,2]
[361064044,1747227057630,-400.0,0.00011529,2]
[361064045,1747227057639,-400.0,0.00011529,2]
[361064046,1747227057649,-151.0,0.00011529,2]
[361064047,1747227057658,-400.0,0.00011529,2]
[361064048,1747227057668,-208.808782,0.00011529,2]
[361064049,1747227057679,-400.0,0.00011529,2]
[361064050,1747227057689,-457.65,0.00011529,2]
[361064051,1747227057698,-400.0,0.00011529,2]
[361064052,1747227057708,-151.0,0.00011529,2]
[361064053,1747227057718,-400.0,0.00011529,2]
[361064054,1747227057727,-348.22297932,0.00011529,2]
[361064055,1747227057736,-400.0,0.00011529,2]
[361064056,1747227057746,-401.63,0.00011529,2]
[361064057,1747227057756,-400.0,0.00011529,2]
[361064058,1747227057766,-400.0,0.00011529,2]
[361064059,1747227057777,-400.0,0.00011529,2]
[361064060,1747227057786,-400.0,0.00011529,2]
[361064061,1747227057795,-151.0,0.00011529,2]
[361064062,1747227057804,-486.53,0.00011529,2]
[361064063,1747227057814,-151.0,0.00011529,2]
[361064064,1747227057823,-400.0,0.00011529,2]
[361064065,1747227057833,-400.0,0.00011529,2]
[361064066,1747227057843,-400.0,0.00011529,2]
[361064067,1747227057852,-400.0,0.00011529,2]
[361064068,1747227057861,-445.31,0.00011529,2]
[361064069,1747227057871,-968.02,0.00011529,2]
[361064070,1747227057881,-158.931497,0.00011529,2]
[361064071,1747227057890,-151.0,0.00011529,2]
[361064072,1747227057899,-400.0,0.00011529,2]
[361064073,1747227057908,-400.0,0.00011529,2]
[361064074,1747227057918,-400.0,0.00011529,2]
[361064075,1747227057927,-400.0,0.00011529,2]
[361064076,1747227057936,-541.77,0.00011529,2]
[361064077,1747227057946,-1409.920083,0.00011529,2]
[361064078,1747227057956,-400.0,0.00011529,2]
[361064079,1747227057965,-151.0,0.00011529,2]
[361064080,1747227057974,-400.0,0.00011529,2]
[361064081,1747227057983,-1409.920083,0.00011529,2]
[361064082,1747227057993,-445.45,0.00011529,2]
[361064083,1747227058002,-360.84688047,0.00011529,2]
[361064084,1747227058012,-632.39,0.00011529,2]
[361064085,1747227058023,-400.0,0.00011529,2]
[361064086,1747227058036,-400.0,0.00011529,2]
[361064087,1747227058045,-400.0,0.00011529,2]
[361064088,1747227058055,-705.71,0.00011529,2]
[361064089,1747227058064,-199.872514,0.00011529,2]
[361064090,1747227058074,-400.0,0.00011529,2]
[361064091,1747227058083,-641.8,0.00011529,2]
[361064092,1747227058093,-1154.67,0.00011529,2]
[361064093,1747227058103,-199.872514,0.00011529,2]
[361064094,1747227058113,-400.0,0.00011529,2]
[361064095,1747227058123,-400.0,0.00011529,2]
[361064096,1747227058132,-578.86,0.00011529,2]
[361064097,1747227058141,-400.0,0.00011529,2]
[361064098,1747227058151,-1068.5,0.00011529,2]
[361064099,1747227058160,-569.22,0.00011529,2]
[361064100,1747227058170,-1753.8,0.00011529,2]
[361064101,1747227058180,-565.13,0.00011529,2]
[361064102,1747227058189,-400.0,0.00011529,2]
[361064103,1747227058199,-400.0,0.00011529,2]
[361064104,1747227058208,-517.29,0.00011529,2]
[361064105,1747227058218,-400.0,0.00011529,2]
[361064106,1747227058227,-492.38336148,0.00011529,2]
[361064107,1747227058236,-400.0,0.00011529,2]
[361064108,1747227058246,-400.0,0.00011529,2]
[361064109,1747227058255,-400.0,0.00011529,2]
[361064110,1747227058266,-400.0,0.00011529,2]
[361064111,1747227058275,-638.38,0.00011529,2]
[361064112,1747227058285,-400.0,0.00011529,2]
[361064113,1747227058295,-400.0,0.00011529,2]
[361064114,1747227058305,-400.0,0.00011529,2]
[361064115,1747227058314,-400.0,0.00011529,2]
[361064116,1747227058323,-400.0,0.00011529,2]
[361064117,1747227058333,-400.0,0.00011529,2]
[361064118,1747227058342,-447.71,0.00011529,2]
[361064119,1747227058352,-400.0,0.00011529,2]
[361064120,1747227058362,-400.0,0.00011529,2]
[361064121,1747227058372,-1669.75666252,0.00011529,2]
[361064122,1747227058387,-136.16333748,0.00011529,2]
[361064123,1747227058397,-400.0,0.00011529,2]
[361064124,1747227058407,-400.0,0.00011529,2]
[361064125,1747227058416,-63.83666252,0.00011529,2]
[361064126,1747227058430,-336.16333748,0.00011529,2]
[361064127,1747227058440,-663.83666252,0.00011529,2]
[361064128,1747227058472,-250.85280794,0.00011529,2]
[361064129,1747227059100,-400.0,0.0001098,2]
[361064130,1747227059111,-39.28052954,0.00011529,2]
[361064131,1747227059121,-400.0,0.00011529,2]
[361064132,1747227059130,-151.0,0.00011529,2]
[361064133,1747227059140,-151.0,0.00011529,2]
[361064134,1747227059150,-400.0,0.00011529,2]
[361064135,1747227059160,-1653.98,0.00011529,2]
[361064136,1747227059170,-151.0,0.00011529,2]
[361064137,1747227059179,-412.38,0.00011529,2]
[361064138,1747227059190,-151.0,0.00011529,2]
[361064139,1747227059199,-410.29,0.00011529,2]
[361064140,1747227059209,-837.04,0.00011529,2]
[361064141,1747227059218,-151.0,0.00011529,2]
[361064142,1747227059228,-151.0,0.00011529,2]
[361064143,1747227059238,-151.0,0.00011529,2]
[361064144,1747227059248,-2007.0,0.00011529,2]
[361064145,1747227059258,-151.0,0.00011529,2]
[361064146,1747227059268,-400.0,0.00011529,2]
[361064147,1747227059278,-400.0,0.00011529,2]
[361064148,1747227059289,-400.0,0.00011529,2]
[361064149,1747227059299,-400.0,0.00011529,2]
[361064150,1747227059309,-400.0,0.00011529,2]
[361064151,1747227059318,-400.0,0.00011529,2]
[361064152,1747227059328,-400.0,0.00011529,2]
[361064153,1747227059338,-400.0,0.00011529,2]
[361064154,1747227059347,-612.33,0.00011529,2]
[361064155,1747227059357,-958.42,0.00011529,2]
[361064156,1747227059366,-473.16,0.00011529,2]
[361064157,1747227059376,-449.73,0.00011529,2]
[361064158,1747227059386,-400.0,0.00011529,2]
[361064159,1747227059395,-701.57,0.00011529,2]
[361064160,1747227059404,-551.93,0.00011529,2]
[361064161,1747227059414,-400.0,0.00011529,2]
[361064162,1747227059424,-400.0,0.00011529,2]
[361064163,1747227059433,-2597.54,0.00011529,2]
[361064164,1747227059443,-400.0,0.00011529,2]
[361064165,1747227059453,-151.0,0.00011529,2]
[361064166,1747227059463,-400.0,0.00011529,2]
[361064167,1747227059472,-400.0,0.00011529,2]
[361064168,1747227059649,-151.0,0.00011529,2]
[361064169,1747227059675,-151.0,0.00011529,2]
[361064170,1747227059685,-851.87,0.00011529,2]
[361064171,1747227059695,-173.062655,0.00011529,2]
[361064172,1747227059704,-518.08,0.00011529,2]
[361064173,1747227059714,-1361.74,0.00011529,2]
[361064174,1747227059724,-1542.29,0.00011529,2]
[361064175,1747227059734,-403.8,0.00011529,2]
[361064176,1747227059744,-483.11,0.00011529,2]
[361064177,1747227059754,-151.0,0.00011529,2]
[361064178,1747227059764,-197.791014,0.00011529,2]
[361064179,1747227059775,-483.75,0.00011529,2]
[361064180,1747227059785,-400.0,0.00011529,2]
[361064181,1747227059795,-151.0,0.00011529,2]
[361064182,1747227059805,-197.791014,0.00011529,2]
[361064183,1747227059815,-1001.15,0.00011529,2]
[361064184,1747227059824,-400.0,0.00011529,2]
[361064185,1747227059833,-400.0,0.00011529,2]
[361064186,1747227059843,-866.74,0.00011529,2]
[361064187,1747227059852,-424.6,0.00011529,2]
[361064188,1747227059862,-400.0,0.00011529,2]
[361064189,1747227059872,-151.0,0.00011529,2]
[361064190,1747227059882,-400.0,0.00011529,2]
[361064191,1747227059892,-400.0,0.00011529,2]
[361064192,1747227059902,-623.6,0.00011529,2]
[361064193,1747227059912,-878.58,0.00011529,2]
[361064194,1747227059923,-400.0,0.00011529,2]
[361064195,1747227059933,-400.0,0.00011529,2]
[361064196,1747227059943,-400.0,0.00011529,2]
[361064197,1747227059952,-400.0,0.00011529,2]
[361064198,1747227059962,-558.81,0.00011529,2]
[361064199,1747227059972,-430.47,0.00011529,2]
[361064200,1747227059982,-151.0,0.00011529,2]
[361064201,1747227059991,-400.0,0.00011529,2]
[361064202,1747227060001,-836.88,0.00011529,2]
[361064203,1747227060011,-400.0,0.00011529,2]
[361064204,1747227060021,-400.0,0.00011529,2]
[361064205,1747227060036,-400.0,0.00011529,2]
[361064206,1747227060048,-400.0,0.00011529,2]
[361064207,1747227060058,-400.0,0.00011529,2]
[361064208,1747227060070,-151.0,0.00011529,2]
[361064209,1747227060080,-687.44,0.00011529,2]
[361064210,1747227060089,-1282.25,0.00011529,2]
[361064211,1747227060099,-508.99,0.00011529,2]
[361064212,1747227060110,-868.35,0.00011529,2]
[361064213,1747227060120,-256.86075965,0.00011529,2]
[361064214,1747227060130,-400.0,0.00011529,2]
[361064215,1747227060140,-400.0,0.00011529,2]
[361064216,1747227060149,-400.0,0.00011529,2]
[361064217,1747227060159,-400.0,0.00011529,2]
[361064218,1747227060169,-151.0,0.00011529,2]
[361064219,1747227060181,-400.0,0.00011529,2]
[361064220,1747227060191,-400.0,0.00011529,2]
[361064221,1747227060201,-568.7,0.00011529,2]
[361064222,1747227060211,-400.0,0.00011529,2]
[361064223,1747227060220,-994.91,0.00011529,2]
[361064224,1747227060231,-400.0,0.00011529,2]
[361064225,1747227060241,-400.0,0.00011529,2]
[361064226,1747227060250,-400.0,0.00011529,2]
[361064227,1747227060260,-400.0,0.00011529,2]
[361064228,1747227060271,-400.0,0.00011529,2]
[361064229,1747227060281,-928.28,0.00011529,2]
[361064230,1747227060291,-400.0,0.00011529,2]
[361064231,1747227060301,-400.0,0.00011529,2]
[361064232,1747227060311,-400.0,0.00011529,2]
[361064233,1747227060321,-400.0,0.00011529,2]
[361064234,1747227060331,-400.0,0.00011529,2]
[361064235,1747227060341,-654.93,0.00011529,2]
[361064236,1747227060351,-151.0,0.00011529,2]
[361064237,1747227060360,-2915.19,0.00011529,2]
[361064238,1747227060370,-151.0,0.00011529,2]
[361064239,1747227060380,-400.0,0.00011529,2]
[361064240,1747227060389,-525.72,0.00011529,2]
[361064241,1747227060399,-400.0,0.00011529,2]
[361064242,1747227060408,-658.778422,0.00011529,2]
[361064243,1747227060418,-1051.61,0.00011529,2]
[361064244,1747227060430,-209.174331,0.00011529,2]
[361064245,1747227060439,-658.778422,0.00011529,2]
[361064246,1747227060450,-921.23,0.00011529,2]
[361064247,1747227060460,-209.174331,0.00011529,2]
[361064248,1747227060470,-151.0,0.00011529,2]
[361064249,1747227060479,-151.0,0.00011529,2]
[361064250,1747227060489,-949.04,0.00011529,2]
[361064251,1747227060499,-151.0,0.00011529,2]
[361064252,1747227060509,-400.0,0.00011529,2]
[361064253,1747227060518,-151.0,0.00011529,2]
[361064254,1747227060528,-1087.73,0.00011529,2]
[361064255,1747227060538,-329.96731699,0.00011529,2]
[361064256,1747227060548,-807.36,0.00011529,2]
[361064257,1747227060557,-400.0,0.00011529,2]
[361064258,1747227060567,-400.0,0.00011529,2]
[361064259,1747227060577,-400.0,0.00011529,2]
[361064260,1747227060587,-983.28,0.00011529,2]
[361064261,1747227060597,-10496.16,0.00011529,2]
[361064262,1747227060607,-1831.04,0.00011529,2]
[361064263,1747227060616,-400.0,0.00011529,2]
[361064264,1747227060626,-400.0,0.00011529,2]
[361064265,1747227060635,-655.77,0.00011529,2]
[361064266,1747227060645,-400.0,0.00011529,2]
[361064267,1747227060655,-805.69,0.00011529,2]
[361064268,1747227060665,-1208.23,0.00011529,2]
[361064269,1747227060677,-400.0,0.00011529,2]
[361064270,1747227060687,-151.0,0.00011529,2]
[361064271,1747227060696,-878.67,0.00011529,2]
[361064272,1747227060706,-791.03,0.00011529,2]
[361064273,1747227060715,-499.52039631,0.00011529,2]
[361064274,1747227060726,-400.0,0.00011529,2]
[361064275,1747227060735,-576.63,0.00011529,2]
[361064276,1747227060745,-151.0,0.00011529,2]
[361064277,1747227060755,-16339.94,0.00011529,2]
[361064278,1747227060765,-400.0,0.00011529,2]
[361064279,1747227060775,-431.83,0.00011529,2]
[361064280,1747227060787,-400.0,0.00011529,2]
[361064281,1747227060797,-176.66,0.00011529,2]
[361064282,1747227060807,-400.0,0.00011529,2]
[361064283,1747227060816,-2603.7,0.00011529,2]
[361064284,1747227060826,-544.09,0.00011529,2]
[361064285,1747227060836,-426.64,0.00011529,2]
[361064286,1747227060847,-400.0,0.00011529,2]
[361064287,1747227060857,-445.27,0.00011529,2]
[361064288,1747227060866,-400.0,0.00011529,2]
[361064289,1747227060876,-400.0,0.00011529,2]
[361064290,1747227060886,-261.64022993,0.00011529,2]
[361064291,1747227060895,-400.0,0.00011529,2]
[361064292,1747227060905,-735.3,0.00011529,2]
[361064293,1747227060915,-696.88,0.00011529,2]
[361064294,1747227060926,-400.0,0.00011529,2]
[361064295,1747227060936,-969.83,0.00011529,2]
[361064296,1747227060946,-437.88,0.00011529,2]
[361064297,1747227060955,-1090.27,0.00011529,2]
[361064298,1747227060965,-400.0,0.00011529,2]
[361064299,1747227060975,-463.48,0.00011529,2]
[361064300,1747227060986,-151.0,0.00011529,2]
[361064301,1747227060995,-400.0,0.00011529,2]
[361064302,1747227061006,-1216.684352,0.00011529,2]
[361064303,1747227061016,-1216.684352,0.00011529,2]
[361064304,1747227061028,-932.66,0.00011529,2]
[361064305,1747227061039,-400.0,0.00011529,2]
[361064306,1747227061049,-492.83,0.00011529,2]
[361064307,1747227061059,-731.919218,0.00011529,2]
[361064308,1747227061071,-731.919218,0.00011529,2]
[361064309,1747227061081,-235.28861,0.00011529,2]
[361064310,1747227061091,-235.28861,0.00011529,2]
[361064311,1747227061101,-345.263491,0.00011529,2]
[361064312,1747227061110,-400.0,0.00011529,2]
[361064313,1747227061121,-345.263491,0.00011529,2]
[361064314,1747227061131,-151.789187,0.0001153,2]
[361064315,1747227061141,-151.0,0.0001153,2]
[361064316,1747227061151,-255.613997,0.0001153,2]
[361064317,1747227061161,-255.613997,0.0001153,2]
[361064318,1747227061171,-151.0,0.0001153,2]
[361064319,1747227061181,-151.0,0.0001153,2]
[361064320,1747227061191,-151.0,0.0001153,2]
[361064321,1747227061200,-1000.0,0.0001153,2]
[361064322,1747227061211,-151.0,0.00011531,2]
[361064323,1747227061221,-151.0,0.00011531,2]
[361064324,1747227061231,-151.0,0.00011531,2]
[361064325,1747227061241,-220.161452,0.00011531,2]
[361064326,1747227061251,-151.0,0.00011531,2]
[361064327,1747227061261,-151.0,0.00011531,2]
[361064328,1747227061271,-151.0,0.00011531,2]
[361064329,1747227061280,-151.0,0.00011531,2]
[361064330,1747227061290,-291.519866,0.00011531,2]
[361064331,1747227061300,-291.519866,0.00011531,2]
[361064332,1747227061309,-231.335987,0.00011531,2]
[361064333,1747227061319,-231.335987,0.00011531,2]
[361064334,1747227061329,-151.0,0.00011531,2]
[361064335,1747227061339,-151.0,0.00011531,2]
[361064336,1747227061348,-568.708886,0.00011531,2]
[361064337,1747227061358,-568.708886,0.00011531,2]
[361064338,1747227061367,-151.0,0.00011531,2]
[361064339,1747227061376,-151.0,0.00011531,2]
[361064340,1747227061386,-151.0,0.00011531,2]
[361064341,1747227061396,-151.0,0.00011531,2]
[361064342,1747227061406,-151.0,0.00011531,2]
[361064343,1747227061416,-188.711592,0.00011531,2]
[361064344,1747227061427,-188.711592,0.00011531,2]
[361064345,1747227061436,-151.0,0.00011531,2]
[361064346,1747227061446,-151.0,0.00011531,2]
[361064347,1747227061455,-151.0,0.00011531,2]
[361064348,1747227061465,-151.0,0.00011531,2]
[361064349,1747227061476,-151.0,0.00011531,2]
[361064350,1747227061486,-1409.920083,0.00011531,2]
[361064351,1747227061496,-151.0,0.00011531,2]
[361064352,1747227061506,-1409.920083,0.00011531,2]
[361064353,1747227061516,-199.872514,0.00011531,2]
[361064354,1747227061527,-199.872514,0.00011531,2]
[361064355,1747227061538,-151.0,0.00011531,2]
[361064356,1747227061549,-151.0,0.00011531,2]
[361064357,1747227061559,-151.0,0.00011531,2]
[361064358,1747227061570,-151.0,0.00011531,2]
[361064359,1747227061582,-151.0,0.00011531,2]
[361064360,1747227061592,-151.0,0.00011531,2]
[361064361,1747227061603,-151.0,0.00011531,2]
[361064362,1747227061613,-151.0,0.00011531,2]
[361064363,1747227061624,-151.0,0.00011532,2]
[361064364,1747227061634,-151.0,0.00011532,2]
[361064365,1747227061644,-151.0,0.00011532,2]
[361064366,1747227061654,-151.0,0.00011532,2]
[361064367,1747227061664,-151.0,0.00011547,2]
[361064368,1747227061677,-151.0,0.00011547,2]
[361064369,1747227061687,-151.0,0.00011547,2]
[361064370,1747227061698,-151.0,0.00011547,2]
[361064371,1747227061709,-197.791014,0.00011547,2]
[361064372,1747227061720,-153.030808,0.00011547,2]
[361064373,1747227061730,-197.791014,0.00011547,2]
[361064374,1747227061741,-151.0,0.00011547,2]
[361064375,1747227061751,-151.0,0.00011547,2]
[361064376,1747227061762,-151.0,0.00011547,2]
[361064377,1747227061772,-246.23185,0.00011547,2]
[361064378,1747227061782,-151.0,0.00011547,2]
[361064379,1747227061793,-658.778422,0.00011547,2]
[361064380,1747227061803,-209.174331,0.00011547,2]
[361064381,1747227061813,-658.778422,0.00011547,2]
[361064382,1747227061823,-209.174331,0.00011547,2]
[361064383,1747227061834,-151.0,0.00011547,2]
[361064384,1747227061844,-151.0,0.00011547,2]
[361064385,1747227061854,-151.0,0.00011547,2]
[361064386,1747227061863,-2371.03675242,0.00011568,2]
[361064387,1747227061873,-199.01807655,0.00011703,2]
[361064388,1747227061883,-2371.03675242,0.0001174,2]
[361064389,1747227061893,-1358.33,0.00011749,2]
[361064390,1747227061903,-500.0,0.0001175,2]
[361064391,1747227061913,-500.0,0.0001175,2]
[361064392,1747227061924,-500.0,0.0001175,2]
[361064393,1747227061935,-500.0,0.0001175,2]
[361064394,1747227061945,-500.0,0.0001175,2]
[361064395,1747227061955,-500.0,0.0001175,2]
[361064396,1747227061965,-500.0,0.0001175,2]
[361064397,1747227061975,-500.0,0.0001175,2]
[361064398,1747227061985,-500.0,0.0001175,2]
[361064399,1747227061995,-500.0,0.0001175,2]
[361064400,1747227062005,-500.0,0.0001175,2]
[361064401,1747227062015,-500.0,0.0001175,2]
[361064402,1747227062025,-500.0,0.0001175,2]